fUSD/lending_fUSD_20240515
["ID","MTS","AMOUNT","RATE_DAILY","PERIOD"]
[327076782,1715787041614,-3351.38867927,0.00011998,2]
[327076783,1715787041624,-3026.24071623,0.00011998,2]
[327076784,1715787041633,-155.77980252,0.00011998,2]
[327076785,1715787041643,-389.16633426,0.00011998,2]
[327076786,1715787041652,-500.0,0.00011998,2]
[327076787,1715787041662,-676.69971415,0.00011998,2]
[327076788,1715787041672,-402.82503361,0.00011998,2]
[327076789,1715787041681,-1622.45,0.00011998,2]
[327076790,1715787041691,-150.01,0.00011999,2]
[327076791,1715787041701,-731.66675882,0.00011999,2]
[327076792,1715787041710,-2000.0,0.00011999,2]
[327076793,1715787041720,-200.0,0.00011999,2]
[327076794,1715787041731,-200.0,0.00011999,2]
[327076795,1715787041741,-150.0,0.00011999,2]
[327076796,1715787041750,-155.0,0.00011999,2]
[327076797,1715787041760,-500.0,0.00011999,2]
[327076798,1715787041769,-500.0,0.00011999,2]
[327076799,1715787041779,-500.0,0.00011999,2]
[327076801,1715787041788,-500.0,0.00011999,2]
[327076802,1715787041797,-500.0,0.00011999,2]
[327076803,1715787041807,-500.0,0.00011999,2]
[327076804,1715787041816,-154.87797704,0.00011999,2]
[327076805,1715787041827,-3000.0,0.00011999,2]
[327076806,1715787041837,-3000.0,0.00011999,2]
[327076807,1715787041848,-471.67101494,0.00011999,2]
[327076808,1715787041858,-500.0,0.00011999,2]
[327076809,1715787041868,-500.0,0.00011999,2]
[327076810,1715787041878,-500.0,0.00011999,2]
[327076811,1715787041887,-500.0,0.00011999,2]
[327076812,1715787041896,-500.0,0.00011999,2]
[327076813,1715787041905,-500.0,0.00011999,2]
[327076814,1715787041915,-500.0,0.00011999,2]
[327076815,1715787041924,-500.0,0.00011999,2]
[327076816,1715787041934,-500.0,0.00011999,2]
[327076817,1715787041943,-500.0,0.00011999,2]
[327076818,1715787041953,-500.0,0.00011999,2]
[327076819,1715787041963,-500.0,0.00011999,2]
[327076820,1715787041974,-500.0,0.00011999,2]
[327076821,1715787041983,-500.0,0.00011999,2]
[327076822,1715787041992,-500.0,0.00011999,2]
[327076823,1715787042002,-500.0,0.00011999,2]
[327076824,1715787042011,-500.0,0.00011999,2]
[327076825,1715787042021,-500.0,0.00011999,2]
[327076826,1715787042030,-312.01152522,0.00011999,2]
[327076827,1715787042039,-500.0,0.00011999,2]
[327076828,1715787042049,-500.0,0.00011999,2]
[327076829,1715787042059,-500.0,0.00011999,2]
[327076830,1715787042083,-1622.45,0.00011999,2]
[327076831,1715787042093,-1622.45,0.00011999,2]
[327076832,1715787042105,-1622.45,0.00011999,2]
[327076833,1715787042115,-1622.45,0.00011999,2]
[327076834,1715787042125,-1622.45,0.00011999,2]
[327076835,1715787042136,-1622.45,0.00011999,2]
[327076836,1715787042148,-1622.45,0.00011999,2]
[327076837,1715787042158,-1622.45,0.00011999,2]
[327076838,1715787042169,-1622.45,0.00011999,2]
[327076839,1715787042179,-1622.45,0.00011999,2]
[327076840,1715787042189,-1622.45,0.00011999,2]
[327076841,1715787042199,-1622.45,0.00011999,2]
[327076842,1715787042208,-1622.45,0.00011999,2]
[327076843,1715787042219,-1622.45,0.00011999,2]
[327076844,1715787042230,-1622.45,0.00011999,2]
[327076845,1715787042240,-1622.45,0.00011999,2]
[327076846,1715787042250,-1622.45,0.00011999,2]
[327076847,1715787042261,-1622.45,0.00011999,2]
[327076848,1715787042270,-1622.45,0.00011999,2]
[327076849,1715787042280,-1622.45,0.00011999,2]
[327076850,1715787042290,-1622.45,0.00011999,2]
[327076851,1715787042300,-1622.46553041,0.00011999,2]
[327076852,1715787042309,-1315.06,0.00011999,2]
[327076853,1715787042320,-1315.06,0.00011999,2]
[327076854,1715787042331,-1315.06,0.00011999,2]
[327076855,1715787042341,-1315.06,0.00011999,2]
[327076856,1715787042352,-1315.06,0.00011999,2]
[327076857,1715787042362,-1315.06,0.00011999,2]
[327076858,1715787042373,-1315.06,0.00011999,2]
[327076859,1715787042384,-1315.06,0.00011999,2]
[327076860,1715787042394,-1315.06,0.00011999,2]
[327076861,1715787042404,-1315.06,0.00011999,2]
[327076862,1715787042413,-1315.06,0.00011999,2]
[327076863,1715787042423,-1315.06,0.00011999,2]
[327076864,1715787042433,-1315.06,0.00011999,2]
[327076865,1715787042443,-1315.06,0.00011999,2]
[327076866,1715787042453,-1315.06,0.00011999,2]
[327076867,1715787042463,-1315.06,0.00011999,2]
[327076868,1715787042473,-1315.06,0.00011999,2]
[327076869,1715787042484,-1315.06,0.00011999,2]
[327076870,1715787042494,-1315.06,0.00011999,2]
[327076871,1715787042503,-1315.06,0.00011999,2]
[327076872,1715787042512,-1315.06,0.00011999,2]
[327076873,1715787042521,-1315.23020643,0.00011999,2]
[327076874,1715787042532,-735.72,0.00011999,2]
[327076875,1715787042542,-735.72,0.00011999,2]
[327076876,1715787042552,-735.72,0.00011999,2]
[327076877,1715787042563,-735.72,0.00011999,2]
[327076878,1715787042575,-315.79,0.00011999,2]
[327076879,1715787042585,-735.72,0.00011999,2]
[327076880,1715787042595,-735.72,0.00011999,2]
[327076881,1715787042605,-735.72,0.00011999,2]
[327076882,1715787042617,-735.72,0.00011999,2]
[327076883,1715787042627,-735.72,0.00011999,2]
[327076884,1715787042637,-735.72,0.00011999,2]
[327076885,1715787042647,-735.72,0.00011999,2]
[327076886,1715787042657,-735.72,0.00011999,2]
[327076887,1715787042667,-735.72,0.00011999,2]
[327076888,1715787042677,-735.72,0.00011999,2]
[327076889,1715787042687,-735.72,0.00011999,2]
[327076890,1715787042698,-735.72,0.00011999,2]
[327076891,1715787042708,-735.72,0.00011999,2]
[327076892,1715787042719,-735.72,0.00011999,2]
[327076893,1715787042731,-735.72,0.00011999,2]
[327076894,1715787042742,-735.72,0.00011999,2]
[327076895,1715787042752,-735.72,0.00011999,2]
[327076896,1715787042763,-735.87352139,0.00011999,2]
[327076897,1715787042772,-86745.36309846,0.00012,2]
[327076898,1715787042790,-129905.96384903,0.00012,2]
[327076899,1715787042802,-977.69249947,0.00012,2]
[327076900,1715787042814,-708.7166173,0.00012,2]
[327076901,1715787042825,-301.52429435,0.00012,2]
[327076902,1715787042964,-894.6382493,0.00012,2]
[327076903,1715787042976,-20754.12,0.00012,2]
[327076904,1715787042988,-675.40283833,0.00012,2]
[327076909,1715787043294,-1000.0,0.000113,2]
[327076914,1715787043304,-500.0,0.0001178,2]
[327076919,1715787043314,-500.0,0.0001178,2]
[327076925,1715787043324,-14225.0,0.00012,2]
[327076929,1715787043335,-9709.12232404,0.00012,2]
[327076941,1715787043899,-487.77783921,0.00011999,2]
[327076942,1715787043909,-300.84186212,0.00012,2]
[327076943,1715787043921,-428.03097649,0.00012,2]
[327076944,1715787043933,-3697.6034356,0.00012,2]
[327076946,1715787044654,-1226.0,0.00011563,2]
[327076948,1715787044665,-500.0,0.0001178,2]
[327076950,1715787044674,-1526.6,0.00012,2]
[327076952,1715787044686,-7153.60866,0.00012,2]
[327077032,1715787048097,-610.0,0.00011563,2]
[327077035,1715787048109,-651.0,0.00011563,2]
[327077037,1715787048119,-500.0,0.0001178,2]
[327077039,1715787048128,-500.0,0.0001178,2]
[327077041,1715787048137,-817.82411991,0.00011999,2]
[327077042,1715787048151,-6018.64903077,0.00012,2]
[327077043,1715787048161,-2375.0,0.00012,2]
[327077044,1715787048170,-979.11155945,0.00012,2]
[327077045,1715787048182,-33726.00650358,0.00012,2]
[327077046,1715787048193,-41289.98065039,0.00012,2]
[327077047,1715787048204,-105590.48360634,0.00012,2]
[327077049,1715787048629,-487.77783922,0.00011999,2]
[327077051,1715787048639,-260.37216078,0.00012,2]
[327077052,1715787048650,-57058.0978881,0.00012,2]
[327077053,1715787048662,-16266.34667293,0.00012,2]
[327077054,1715787048673,-9595.1640004,0.00012,2]
[327077055,1715787048684,-2273.83887988,0.00012,2]
[327077056,1715787048696,-96467.72558663,0.00012,2]
[327077057,1715787048707,-7488.25810967,0.00012,2]
[327077058,1715787048718,-556.002,0.00012,2]
[327077059,1715787048729,-12981.37679998,0.00012,2]
[327077394,1715787052179,155.0,0.00011999,60]
[327077713,1715787616825,843.80094652,0.0002301,120]
[327077719,1715787802341,150.0,0.0002305,120]
[327077724,1715787961717,152.43,8.219e-05,2]
[327077734,1715788152982,170.68,8.219e-05,2]
[327077745,1715788233274,-260.48203453,8.736e-05,2]
[327077746,1715788233283,-817.82411991,8.737e-05,2]
[327077747,1715788233293,-278.16690321,8.738e-05,2]
[327077749,1715788233304,-1470.15709679,8.738e-05,2]
[327077751,1715788233314,-802.122679,8.739e-05,2]
[327077755,1715788233337,-1153.90392012,8.739e-05,2]
[327077757,1715788233349,-822.59325842,8.739e-05,2]
[327077759,1715788233358,-715.37,9.808e-05,2]
[327077760,1715788233369,-400.0,9.821e-05,2]
[327077761,1715788233379,-250.0,9.855e-05,2]
[327077762,1715788233389,-154.8,9.915e-05,2]
[327077763,1715788233399,-498.23,9.955e-05,2]
[327077764,1715788233407,-154.8,9.972e-05,2]
[327077765,1715788233422,-154.8,0.00010029,2]
[327077766,1715788233431,-154.8,0.00010087,2]
[327077767,1715788233440,-154.8,0.00010144,2]
[327077768,1715788233451,-600.0,0.00010182,2]
[327077769,1715788233461,-154.8,0.00010202,2]
[327077770,1715788233472,-150.0,0.00010219,2]
[327077771,1715788233483,-177.57,0.00010236,2]
[327077772,1715788233493,-154.8,0.00010259,2]
[327077773,1715788233503,-150.0,0.000103,2]
[327077774,1715788233513,-1380.16157324,0.00010301,2]
[327077775,1715788233523,-262.05,0.00010301,2]
[327077776,1715788233542,-154.8,0.00010316,2]
[327077777,1715788233554,-551.6,0.00010368,2]
[327077778,1715788233565,-154.8,0.00010374,2]
[327077779,1715788233576,-323.43,0.00010411,2]
[327077780,1715788233586,-154.8,0.00010431,2]
[327077781,1715788233595,-176.56,0.00010505,2]
[327077782,1715788233606,-250.5802228,0.00010798,2]
[327077783,1715788233616,-155.12,0.00010806,2]
[327077785,1715788233625,-155.12,0.00010815,2]
[327077788,1715788233635,-499.99,0.00010815,2]
[327077790,1715788233645,-155.12,0.00010824,2]
[327077792,1715788233654,-155.12,0.00010833,2]
[327077794,1715788233664,-155.12,0.00010842,2]
[327077796,1715788233673,-155.12,0.00010851,2]
[327077798,1715788233683,-155.12,0.0001086,2]
[327077800,1715788233692,-152.43,0.00010892,2]
[327077802,1715788233701,-1510.64724176,0.00010959,2]
[327077803,1715788233719,-2657.30624144,0.00010959,2]
[327077804,1715788233731,-429.8742519,0.00010959,2]
[327077805,1715788233743,-256.0,0.00010959,2]
[327077806,1715788233756,-1071.32430337,0.00010959,2]
[327077807,1715788233768,-829.59060237,0.00010959,2]
[327077808,1715788233780,-809.26735916,0.00010959,2]
[327077809,1715788233790,-183.21664084,0.00010959,2]
[327077810,1715788233807,-5108.45335916,0.00010959,2]
[327077811,1715788233818,-211.44425983,0.00011,2]
[327077812,1715788233828,-750.87176025,0.00011,2]
[327077813,1715788233838,-400.0,0.00011048,2]
[327077814,1715788233848,-256.756,0.0001108,2]
[327077815,1715788233858,-913.211,0.0001108,2]
[327077816,1715788233868,-763.81697607,0.0001117,2]
[327077817,1715788233885,-857.74670121,0.0001117,2]
[327077818,1715788233897,-9511.23617097,0.0001117,2]
[327077834,1715788237945,-1121.01309545,0.0001117,2]
[327077835,1715788238070,-3180.67548098,0.0001117,2]
[327077836,1715788238081,-1603.33188358,0.00011179,2]
[327077837,1715788238090,-6200.81587769,0.0001118,2]
[327077838,1715788238179,-56959.83629999,0.0001118,2]
[327077839,1715788238189,-804.7,0.000112,2]
[327077840,1715788238198,-210.507,0.000112,2]
[327077841,1715788238208,-170.63,0.00011254,2]
[327077842,1715788238218,-496.9288,0.000113,2]
[327077843,1715788238227,-71403.2732,0.000113,2]
[327077844,1715788238239,-685.44202007,0.0001133,2]
[327077845,1715788238249,-869.03,0.00011441,2]
[327077846,1715788238258,-869.03,0.00011441,2]
[327077847,1715788238267,-600.0,0.00011454,2]
[327077848,1715788238276,-2500.0,0.0001158,2]
[327077849,1715788238285,-9678.03,0.0001168,2]
[327077850,1715788238295,-1038.65831272,0.00011759,2]
[327077851,1715788238304,-1100.32041871,0.00011759,2]
[327077852,1715788238314,-156.42,0.0001177,2]
[327077853,1715788238323,-1710.32144644,0.00011773,2]
[327077854,1715788238332,-463.0977047,0.0001178,2]
[327077855,1715788238342,-805.49,0.0001178,2]
[327077856,1715788238351,-506.00895819,0.0001178,2]
[327077857,1715788238360,-470.89482384,0.0001178,2]
[327077858,1715788238370,-500.0,0.0001178,2]
[327077859,1715788238379,-500.0,0.0001178,2]
[327077861,1715788238389,-365.14745924,0.0001178,2]
[327077863,1715788238399,-500.0,0.0001178,2]
[327077865,1715788238408,-500.0,0.0001178,2]
[327077867,1715788238418,-500.0,0.0001178,2]
[327077869,1715788238435,-538.95999007,0.0001178,2]
[327077871,1715788238444,-500.0,0.0001178,2]
[327077873,1715788238454,-500.0,0.0001178,2]
[327077875,1715788238464,-500.18746504,0.0001178,2]
[327077877,1715788238474,-300.0,0.0001178,2]
[327077879,1715788238484,-500.0,0.0001178,2]
[327077881,1715788238493,-545.44711025,0.0001178,2]
[327077883,1715788238503,-500.0,0.0001178,2]
[327077885,1715788238512,-500.0,0.0001178,2]
[327077887,1715788238521,-500.0,0.0001178,2]
[327077889,1715788238530,-500.0,0.0001178,2]
[327077891,1715788238539,-500.0,0.0001178,2]
[327077893,1715788238548,-544.10678373,0.0001178,2]
[327077894,1715788238556,-500.0,0.0001178,2]
[327077896,1715788238566,-500.0,0.0001178,2]
[327077898,1715788238575,-236.86532349,0.0001178,2]
[327077900,1715788238584,-500.0,0.0001178,2]
[327077902,1715788238593,-500.0,0.0001178,2]
[327077904,1715788238603,-613.40579082,0.0001178,2]
[327077905,1715788238612,-500.0,0.0001178,2]
[327077906,1715788238622,-500.0,0.0001178,2]
[327077907,1715788238632,-500.0,0.0001178,2]
[327077909,1715788238641,-500.0,0.0001178,2]
[327077910,1715788238650,-500.0,0.0001178,2]
[327077911,1715788238659,-500.0,0.0001178,2]
[327077912,1715788238669,-500.0,0.0001178,2]
[327077913,1715788238678,-500.0,0.0001178,2]
[327077914,1715788238687,-500.0,0.0001178,2]
[327077915,1715788238696,-500.0,0.0001178,2]
[327077916,1715788238706,-506.19577192,0.0001178,2]
[327077917,1715788238715,-503.05089127,0.0001178,2]
[327077918,1715788238725,-500.0,0.0001178,2]
[327077919,1715788238736,-500.0,0.0001178,2]
[327077920,1715788238745,-500.0,0.0001178,2]
[327077921,1715788238755,-500.0,0.0001178,2]
[327077922,1715788238765,-500.0,0.0001178,2]
[327077923,1715788238774,-500.0,0.0001178,2]
[327077924,1715788238784,-580.4,0.0001178,2]
[327077925,1715788238794,-500.0,0.0001178,2]
[327077926,1715788238803,-500.0,0.0001178,2]
[327077927,1715788238812,-500.0,0.0001178,2]
[327077928,1715788238822,-401.42749512,0.0001178,2]
[327077929,1715788238832,-500.0,0.0001178,2]
[327077930,1715788238842,-509.09824681,0.0001178,2]
[327077931,1715788238852,-500.0,0.0001178,2]
[327077932,1715788238861,-559.55350487,0.0001178,2]
[327077933,1715788238871,-500.0,0.0001178,2]
[327077934,1715788238880,-500.0,0.0001178,2]
[327077935,1715788238889,-500.0,0.0001178,2]
[327077936,1715788238898,-500.0,0.0001178,2]
[327077937,1715788238907,-500.0,0.0001178,2]
[327077938,1715788238917,-632.63,0.0001178,2]
[327077939,1715788238926,-500.0,0.0001178,2]
[327077940,1715788238935,-500.0,0.0001178,2]
[327077941,1715788238944,-500.0,0.0001178,2]
[327077942,1715788238954,-500.0,0.0001178,2]
[327077943,1715788238963,-500.0,0.0001178,2]
[327077944,1715788238972,-500.0,0.0001178,2]
[327077945,1715788238982,-500.0,0.0001178,2]
[327077946,1715788238992,-500.0,0.0001178,2]
[327077947,1715788239001,-500.0,0.0001178,2]
[327077948,1715788239010,-500.0,0.0001178,2]
[327077949,1715788239019,-500.0,0.0001178,2]
[327077950,1715788239029,-500.0,0.0001178,2]
[327077951,1715788239038,-500.0,0.0001178,2]
[327077952,1715788239048,-500.0,0.0001178,2]
[327077953,1715788239057,-500.0,0.0001178,2]
[327077954,1715788239066,-500.0,0.0001178,2]
[327077955,1715788239075,-500.0,0.0001178,2]
[327077956,1715788239084,-500.0,0.0001178,2]
[327077957,1715788239094,-579.27,0.0001178,2]
[327077958,1715788239103,-500.0,0.0001178,2]
[327077959,1715788239112,-500.0,0.0001178,2]
[327077960,1715788239121,-577.23,0.0001178,2]
[327077961,1715788239131,-500.0,0.0001178,2]
[327077962,1715788239140,-500.0,0.0001178,2]
[327077963,1715788239151,-500.0,0.0001178,2]
[327077964,1715788239161,-500.0,0.0001178,2]
[327077965,1715788239170,-500.0,0.0001178,2]
[327077966,1715788239180,-500.0,0.0001178,2]
[327077967,1715788239189,-545.66,0.0001178,2]
[327077968,1715788239198,-500.0,0.0001178,2]
[327077969,1715788239208,-227.19078124,0.0001178,2]
[327077970,1715788239218,-500.0,0.0001178,2]
[327077971,1715788239228,-500.0,0.0001178,2]
[327077972,1715788239237,-500.0,0.0001178,2]
[327077973,1715788239246,-500.0,0.0001178,2]
[327077974,1715788239255,-591.29,0.0001178,2]
[327077975,1715788239265,-500.0,0.0001178,2]
[327077976,1715788239275,-500.0,0.0001178,2]
[327077977,1715788239284,-500.0,0.0001178,2]
[327077978,1715788239294,-150.0,0.0001178,2]
[327077979,1715788239303,-500.0,0.0001178,2]
[327077980,1715788239313,-500.0,0.0001178,2]
[327077981,1715788239322,-500.0,0.0001178,2]
[327077982,1715788239332,-500.0,0.0001178,2]
[327077983,1715788239341,-500.0,0.0001178,2]
[327077984,1715788239351,-429.39,0.0001178,2]
[327077985,1715788239361,-500.0,0.0001178,2]
[327077986,1715788239370,-632.52,0.0001178,2]
[327077987,1715788239380,-500.0,0.0001178,2]
[327077988,1715788239389,-500.0,0.0001178,2]
[327077989,1715788239398,-328.87716936,0.0001178,2]
[327077990,1715788239408,-574.84,0.0001178,2]
[327077991,1715788239419,-541.81,0.0001178,2]
[327077992,1715788239434,-520.2473809,0.0001178,2]
[327077993,1715788239444,-645.65,0.0001178,2]
[327077994,1715788239454,-631.57,0.0001178,2]
[327077995,1715788239464,-502.40858079,0.0001178,2]
[327077996,1715788239473,-500.0,0.0001178,2]
[327077997,1715788239483,-500.0,0.0001178,2]
[327077998,1715788239495,-500.0,0.0001178,2]
[327077999,1715788239505,-500.0,0.0001178,2]
[327078000,1715788239514,-500.0,0.0001178,2]
[327078001,1715788239524,-500.0,0.0001178,2]
[327078002,1715788239534,-500.0,0.0001178,2]
[327078003,1715788239543,-500.0,0.0001178,2]
[327078004,1715788239553,-500.0,0.0001178,2]
[327078005,1715788239562,-500.0,0.0001178,2]
[327078006,1715788239571,-159.48714444,0.0001178,2]
[327078007,1715788239581,-441.95708341,0.0001178,2]
[327078008,1715788239590,-500.0,0.0001178,2]
[327078013,1715788239818,-381.21232111,0.0001178,2]
[327078014,1715788239828,-500.0,0.0001178,2]
[327078015,1715788239839,-500.0,0.0001178,2]
[327078016,1715788239848,-527.86709569,0.0001178,2]
[327078017,1715788239857,-430.10304818,0.0001178,2]
[327078019,1715788239867,-500.0,0.0001178,2]
[327078020,1715788239877,-500.0,0.0001178,2]
[327078021,1715788239887,-500.0,0.0001178,2]
[327078022,1715788239897,-500.0,0.0001178,2]
[327078023,1715788239906,-306.63572824,0.0001178,2]
[327078024,1715788239916,-500.0,0.0001178,2]
[327078025,1715788239925,-155.0,0.0001178,2]
[327078026,1715788239934,-233.02,0.0001178,2]
[327078027,1715788239944,-500.0,0.0001178,2]
[327078028,1715788239954,-500.0,0.0001178,2]
[327078029,1715788239964,-500.0,0.0001178,2]
[327078030,1715788239973,-500.0,0.0001178,2]
[327078031,1715788239983,-500.0,0.0001178,2]
[327078033,1715788239994,-533.86157514,0.0001178,2]
[327078035,1715788240003,-500.0,0.0001178,2]
[327078037,1715788240013,-502.48786885,0.0001178,2]
[327078039,1715788240023,-555.5166128,0.0001178,2]
[327078040,1715788240032,-548.35,0.0001178,2]
[327078041,1715788240041,-500.0,0.0001178,2]
[327078042,1715788240051,-316.74,0.0001178,2]
[327078043,1715788240060,-500.0,0.0001178,2]
[327078044,1715788240069,-321.20680437,0.0001178,2]
[327078045,1715788240078,-500.0,0.0001178,2]
[327078046,1715788240088,-605.03,0.0001178,2]
[327078047,1715788240097,-500.0,0.0001178,2]
[327078048,1715788240107,-500.0,0.0001178,2]
[327078049,1715788240117,-185.69935194,0.0001178,2]
[327078050,1715788240126,-500.0,0.0001178,2]
[327078051,1715788240135,-500.0,0.0001178,2]
[327078052,1715788240144,-500.0,0.0001178,2]
[327078053,1715788240153,-1404.66,0.0001178,2]
[327078054,1715788240163,-500.0,0.0001178,2]
[327078055,1715788240172,-500.0,0.0001178,2]
[327078056,1715788240181,-500.0,0.0001178,2]
[327078057,1715788240190,-500.0,0.0001178,2]
[327078058,1715788240199,-303.13808998,0.0001178,2]
[327078059,1715788240209,-500.0,0.0001178,2]
[327078060,1715788240218,-155.0,0.0001178,2]
[327078061,1715788240228,-500.0,0.0001178,2]
[327078062,1715788240236,-500.0,0.0001178,2]
[327078063,1715788240247,-500.0,0.0001178,2]
[327078064,1715788240256,-500.0,0.0001178,2]
[327078065,1715788240265,-425.16,0.0001178,2]
[327078066,1715788240274,-500.0,0.0001178,2]
[327078067,1715788240284,-500.0,0.0001178,2]
[327078068,1715788240293,-277.841037,0.0001178,2]
[327078069,1715788240302,-500.0,0.0001178,2]
[327078070,1715788240312,-500.0,0.0001178,2]
[327078071,1715788240321,-600.45,0.0001178,2]
[327078072,1715788240330,-334.36920868,0.0001178,2]
[327078073,1715788240340,-500.0,0.0001178,2]
[327078074,1715788240350,-586.8,0.0001178,2]
[327078075,1715788240360,-500.0,0.0001178,2]
[327078076,1715788240370,-362.74132644,0.0001178,2]
[327078077,1715788240379,-575.86,0.0001178,2]
[327078078,1715788240388,-500.0,0.0001178,2]
[327078079,1715788240397,-500.0,0.0001178,2]
[327078080,1715788240407,-500.0,0.0001178,2]
[327078081,1715788240418,-500.0,0.0001178,2]
[327078082,1715788240432,-596.53987169,0.0001178,2]
[327078083,1715788240441,-500.0,0.0001178,2]
[327078084,1715788240451,-500.0,0.0001178,2]
[327078085,1715788240460,-500.0,0.0001178,2]
[327078086,1715788240470,-500.0,0.0001178,2]
[327078087,1715788240479,-500.0,0.0001178,2]
[327078088,1715788240490,-500.0,0.0001178,2]
[327078089,1715788240501,-500.0,0.0001178,2]
[327078090,1715788240510,-364.37212277,0.0001178,2]
[327078091,1715788240520,-500.0,0.0001178,2]
[327078092,1715788240530,-500.0,0.0001178,2]
[327078093,1715788240539,-500.0,0.0001178,2]
[327078094,1715788240548,-500.0,0.0001178,2]
[327078095,1715788240558,-500.0,0.0001178,2]
[327078096,1715788240567,-500.0,0.0001178,2]
[327078097,1715788240576,-522.45,0.0001178,2]
[327078098,1715788240585,-500.0,0.0001178,2]
[327078099,1715788240595,-537.03498854,0.0001178,2]
[327078100,1715788240604,-500.0,0.0001178,2]
[327078101,1715788240614,-500.0,0.0001178,2]
[327078102,1715788240624,-500.0,0.0001178,2]
[327078103,1715788240634,-500.0,0.0001178,2]
[327078104,1715788240643,-500.0,0.0001178,2]
[327078105,1715788240653,-500.0,0.0001178,2]
[327078106,1715788240662,-500.0,0.0001178,2]
[327078107,1715788240672,-500.0,0.0001178,2]
[327078108,1715788240681,-500.0,0.0001178,2]
[327078109,1715788240690,-500.0,0.0001178,2]
[327078110,1715788240700,-835.42,0.0001178,2]
[327078111,1715788240710,-500.0,0.0001178,2]
[327078112,1715788240719,-500.0,0.0001178,2]
[327078113,1715788240728,-500.0,0.0001178,2]
[327078114,1715788240737,-500.0,0.0001178,2]
[327078115,1715788240748,-500.0,0.0001178,2]
[327078116,1715788240757,-601.11,0.0001178,2]
[327078117,1715788240766,-500.0,0.0001178,2]
[327078118,1715788240776,-500.0,0.0001178,2]
[327078119,1715788240785,-590.54,0.0001178,2]
[327078120,1715788240795,-500.0,0.0001178,2]
[327078121,1715788240804,-500.0,0.0001178,2]
[327078122,1715788240815,-500.0,0.0001178,2]
[327078123,1715788240824,-500.0,0.0001178,2]
[327078124,1715788240833,-402.60662835,0.0001178,2]
[327078125,1715788240842,-585.28715928,0.0001178,2]
[327078126,1715788240852,-500.0,0.0001178,2]
[327078127,1715788240861,-589.89,0.0001178,2]
[327078128,1715788240870,-500.0,0.0001178,2]
[327078129,1715788240880,-500.0,0.0001178,2]
[327078130,1715788240890,-500.0,0.0001178,2]
[327078131,1715788240899,-500.0,0.0001178,2]
[327078132,1715788240909,-500.0,0.0001178,2]
[327078133,1715788240918,-500.0,0.0001178,2]
[327078134,1715788240928,-587.67337585,0.0001178,2]
[327078135,1715788240937,-250.80152881,0.0001178,2]
[327078136,1715788240946,-648.69,0.0001178,2]
[327078137,1715788240956,-500.0,0.0001178,2]
[327078138,1715788240965,-500.0,0.0001178,2]
[327078139,1715788240974,-500.0,0.0001178,2]
[327078140,1715788240983,-500.0,0.0001178,2]
[327078141,1715788240993,-1191.47,0.0001178,2]
[327078142,1715788241002,-500.0,0.0001178,2]
[327078143,1715788241012,-500.0,0.0001178,2]
[327078144,1715788241021,-150.0,0.00011826,2]
[327078145,1715788241030,-7500.0,0.00011841,2]
[327078146,1715788241039,-155.19873689,0.00011841,2]
[327078147,1715788241049,-3072.35272229,0.00011878,2]